[Event "*** Titled Tuesday Blitz"]
[Site "Chess.com"]
[Date "2019.03.05"]
[Round "7"]
[White "Caterpiller35"]
[Black "Chessialist"]
[Result "0-1"]
[WhiteElo "2340"]
[BlackElo "2497"]
[TimeControl "180+2"]
[EndTime "14:38:27 PST"]
[Termination "Chessialist won by resignation"]

1. d4 {[%clk 0:03:01.9]} 1... Nf6 {[%clk 0:03:00.4]} 2. Bg5 {[%clk 0:02:56.6]}
2... Ne4 {[%clk 0:03:00]} 3. Bf4 {[%clk 0:02:57.8]} 3... d5 {[%clk 0:03:00.9]}
4. e3 {[%clk 0:02:58]} 4... Bf5 {[%clk 0:03:01.1]} 5. f3 {[%clk 0:02:59]} 5...
Nd6 {[%clk 0:03:00.9]} 6. g4 {[%clk 0:02:57]} 6... Bg6 {[%clk 0:03:01.4]} 7. c4
{[%clk 0:02:50.9]} 7... dxc4 {[%clk 0:03:00.8]} 8. Bxc4 {[%clk 0:02:42.1]} 8...
Nxc4 {[%clk 0:02:57.6]} 9. Qa4+ {[%clk 0:02:42.8]} 9... Nc6 {[%clk 0:02:57.5]}
10. Qxc4 {[%clk 0:02:43.4]} 10... e6 {[%clk 0:02:58.8]} 11. Nc3 {[%clk
0:02:40.4]} 11... Bd6 {[%clk 0:02:59.6]} 12. Nge2 {[%clk 0:02:40.3]} 12... h5
{[%clk 0:02:56.5]} 13. g5 {[%clk 0:02:30.8]} 13... Bxf4 {[%clk 0:02:49.3]} 14.
Nxf4 {[%clk 0:02:30.7]} 14... Qxg5 {[%clk 0:02:48.1]} 15. O-O-O {[%clk
0:02:24.6]} 15... Qf5 {[%clk 0:02:45.6]} 16. Nxg6 {[%clk 0:02:21.6]} 16... Qxg6
{[%clk 0:02:47.5]} 17. Rhg1 {[%clk 0:02:05.8]} 17... Qh6 {[%clk 0:02:48]} 18. f4
{[%clk 0:02:05.8]} 18... O-O-O {[%clk 0:02:47.6]} 19. Kb1 {[%clk 0:02:03.1]}
19... Qh7+ {[%clk 0:02:39.3]} 20. Ka1 {[%clk 0:02:03.2]} 20... Kb8 {[%clk
0:02:27.6]} 21. Rg5 {[%clk 0:02:02.6]} 21... Qc2 {[%clk 0:01:40.8]} 22. Rxg7
{[%clk 0:01:50.9]} 22... Rd7 {[%clk 0:01:40.7]} 23. Qe2 {[%clk 0:01:29.1]} 23...
Nb4 {[%clk 0:01:33.3]} 24. Rd2 {[%clk 0:01:15.9]} 24... Qc1+ {[%clk 0:01:20.6]}
25. Nb1 {[%clk 0:01:16.8]} 25... Rhd8 {[%clk 0:01:00.1]} 26. a3 {[%clk
0:01:13.4]} 26... Nd5 {[%clk 0:00:59.4]} 27. Rd1 {[%clk 0:01:07.4]} 27... Qxe3
{[%clk 0:00:57.2]} 28. Qxh5 {[%clk 0:01:08.3]} 28... Qxf4 {[%clk 0:00:49.4]} 29.
Qh7 {[%clk 0:00:41.8]} 29... Ne3 {[%clk 0:00:48.1]} 30. Rc1 {[%clk 0:00:33.3]}
30... Nf5 {[%clk 0:00:47.3]} 31. Rxf7 {[%clk 0:00:33]} 31... Rxf7 {[%clk
0:00:48.2]} 32. Qxf7 {[%clk 0:00:32.9]} 32... Qxc1 {[%clk 0:00:48.3]} 0-1

[Event "*** Titled Tuesday Blitz"]
[Site "Chess.com"]
[Date "2019.03.05"]
[Round "7"]
[White "bootstar"]
[Black "davidarenas1224"]
[Result "0-1"]
[WhiteElo "2596"]
[BlackElo "2521"]
[TimeControl "180+2"]
[EndTime "14:38:28 PST"]
[Termination "davidarenas1224 won by checkmate"]

1. e4 {[%clk 0:03:01.9]} 1... e5 {[%clk 0:02:57.7]} 2. Nf3 {[%clk 0:03:03.2]}
2... Nc6 {[%clk 0:02:57.7]} 3. Bb5 {[%clk 0:03:04.8]} 3... a6 {[%clk 0:02:57.7]}
4. Ba4 {[%clk 0:03:06.3]} 4... Nf6 {[%clk 0:02:57.2]} 5. Bxc6 {[%clk 0:03:07.8]}
5... dxc6 {[%clk 0:02:48.4]} 6. d3 {[%clk 0:03:09.3]} 6... Bd6 {[%clk
0:02:49.1]} 7. Nbd2 {[%clk 0:03:10.3]} 7... O-O {[%clk 0:02:49.5]} 8. Nc4 {[%clk
0:03:11.4]} 8... Qe7 {[%clk 0:02:48.8]} 9. O-O {[%clk 0:03:12.3]} 9... h6 {[%clk
0:02:49.6]} 10. Kh1 {[%clk 0:03:10.1]} 10... Be6 {[%clk 0:02:43]} 11. Ne3 {[%clk
0:03:07]} 11... Qd7 {[%clk 0:02:40.1]} 12. Nh4 {[%clk 0:03:04.7]} 12... Rfe8
{[%clk 0:02:36.1]} 13. Nef5 {[%clk 0:03:05.3]} 13... Bf8 {[%clk 0:02:36]} 14.
Qf3 {[%clk 0:03:02.9]} 14... Qd8 {[%clk 0:02:30.2]} 15. Qg3 {[%clk 0:02:50.3]}
15... Kh7 {[%clk 0:02:25.9]} 16. Qxe5 {[%clk 0:02:39.2]} 16... g6 {[%clk
0:02:21.1]} 17. Ng3 {[%clk 0:02:33.8]} 17... Ng4 {[%clk 0:02:17.4]} 18. Qf4
{[%clk 0:02:26.1]} 18... Qxh4 {[%clk 0:02:11.4]} 19. h3 {[%clk 0:02:27.4]} 19...
Bd6 {[%clk 0:02:08.9]} 20. Qf3 {[%clk 0:02:05.1]} 20... Nxf2+ {[%clk 0:02:08.2]}
21. Rxf2 {[%clk 0:02:01.1]} 21... Qxg3 {[%clk 0:02:08.4]} 22. Qxg3 {[%clk
0:02:01]} 22... Bxg3 {[%clk 0:02:09.5]} 23. Rf3 {[%clk 0:02:02]} 23... Be5
{[%clk 0:02:08.8]} 24. c3 {[%clk 0:02:01.5]} 24... c5 {[%clk 0:02:09.7]} 25. Be3
{[%clk 0:02:02.5]} 25... Bd6 {[%clk 0:01:58.5]} 26. b3 {[%clk 0:01:47.6]} 26...
Rad8 {[%clk 0:01:55.7]} 27. Raf1 {[%clk 0:01:46]} 27... Kg7 {[%clk 0:01:48.7]}
28. b4 {[%clk 0:01:30.1]} 28... cxb4 {[%clk 0:01:47.1]} 29. d4 {[%clk
0:01:30.7]} 29... c6 {[%clk 0:01:45.5]} 30. d5 {[%clk 0:01:20]} 30... cxd5
{[%clk 0:01:46.1]} 31. Bd4+ {[%clk 0:01:21.4]} 31... Kg8 {[%clk 0:01:46]} 32. e5
{[%clk 0:01:19.4]} 32... Bf8 {[%clk 0:01:44.6]} 33. cxb4 {[%clk 0:01:20.7]}
33... Rc8 {[%clk 0:01:40.9]} 34. a3 {[%clk 0:01:21.1]} 34... Rc4 {[%clk
0:01:40.9]} 35. Be3 {[%clk 0:01:22.3]} 35... d4 {[%clk 0:01:39.8]} 36. Bd2
{[%clk 0:01:22]} 36... Rc2 {[%clk 0:01:38.2]} 37. Rd3 {[%clk 0:01:22.5]} 37...
Bc4 {[%clk 0:01:37.3]} 38. Rff3 {[%clk 0:01:17]} 38... Bxd3 {[%clk 0:01:37.3]}
39. Rxd3 {[%clk 0:01:18.9]} 39... Rd8 {[%clk 0:01:38.1]} 40. h4 {[%clk 0:01:17]}
40... Bg7 {[%clk 0:01:39.1]} 41. h5 {[%clk 0:01:17.9]} 41... Rxd2 {[%clk
0:01:37.5]} 42. Rxd2 {[%clk 0:01:17.5]} 42... Bxe5 {[%clk 0:01:38.7]} 43. hxg6
{[%clk 0:01:18.8]} 43... fxg6 {[%clk 0:01:39.5]} 44. Kg1 {[%clk 0:01:19.7]}
44... d3 {[%clk 0:01:39.9]} 45. Kf2 {[%clk 0:01:20.9]} 45... Bd4+ {[%clk
0:01:39.1]} 46. Kf3 {[%clk 0:01:20.9]} 46... Bc3 {[%clk 0:01:40]} 47. Rd1 {[%clk
0:01:21.7]} 47... d2 {[%clk 0:01:41.1]} 48. Ke2 {[%clk 0:01:22.8]} 48... Kg7
{[%clk 0:01:41]} 49. g4 {[%clk 0:01:21]} 49... b5 {[%clk 0:01:41]} 50. g5 {[%clk
0:01:21]} 50... hxg5 {[%clk 0:01:41.1]} 51. Ke3 {[%clk 0:01:19.1]} 51... g4
{[%clk 0:01:40]} 52. Kf4 {[%clk 0:01:19.8]} 52... Re8 {[%clk 0:01:41.1]} 53.
Kxg4 {[%clk 0:01:20.8]} 53... Re1 {[%clk 0:01:41.9]} 54. Rxd2 {[%clk 0:01:22.3]}
54... Bxd2 {[%clk 0:01:43.6]} 55. a4 {[%clk 0:01:23.9]} 55... bxa4 {[%clk
0:01:44]} 56. b5 {[%clk 0:01:25.8]} 56... axb5 {[%clk 0:01:44.4]} 57. Kf3 {[%clk
0:01:27.7]} 57... Re3+ {[%clk 0:01:43.7]} 58. Kf2 {[%clk 0:01:29.6]} 58... a3
{[%clk 0:01:43.3]} 59. Kg2 {[%clk 0:01:31.5]} 59... a2 {[%clk 0:01:44.3]} 60.
Kf2 {[%clk 0:01:33.4]} 60... a1=Q {[%clk 0:01:45.3]} 61. Kg2 {[%clk 0:01:35.3]}
61... Qb2 {[%clk 0:01:44.5]} 62. Kh2 {[%clk 0:01:37.2]} 62... Bc3+ {[%clk
0:01:44.5]} 63. Kg1 {[%clk 0:01:39.1]} 63... Re1# {[%clk 0:01:45.2]} 0-1

[Event "*** Titled Tuesday Blitz"]
[Site "Chess.com"]
[Date "2019.03.05"]
[Round "7"]
[White "SantoBlue"]
[Black "kosya4ok"]
[Result "1-0"]
[WhiteElo "2724"]
[BlackElo "2668"]
[TimeControl "180+2"]
[EndTime "14:38:46 PST"]
[Termination "SantoBlue won by resignation"]

1. e4 {[%clk 0:03:01.9]} 1... c5 {[%clk 0:02:58.5]} 2. Nf3 {[%clk 0:03:01]} 2...
d6 {[%clk 0:02:59.7]} 3. Bb5+ {[%clk 0:03:02.2]} 3... Nd7 {[%clk 0:03:00]} 4.
O-O {[%clk 0:03:01.6]} 4... a6 {[%clk 0:02:59.4]} 5. Bxd7+ {[%clk 0:03:02.7]}
5... Bxd7 {[%clk 0:02:59.9]} 6. d4 {[%clk 0:03:04.6]} 6... cxd4 {[%clk
0:03:00.9]} 7. Qxd4 {[%clk 0:03:06.5]} 7... Nf6 {[%clk 0:03:00.8]} 8. c4 {[%clk
0:03:00.4]} 8... e6 {[%clk 0:03:01.1]} 9. Nc3 {[%clk 0:03:01.1]} 9... Be7 {[%clk
0:03:00.9]} 10. Qd3 {[%clk 0:02:56]} 10... O-O {[%clk 0:02:53.2]} 11. Bf4 {[%clk
0:02:56.8]} 11... Bc6 {[%clk 0:02:39]} 12. Rad1 {[%clk 0:02:57.2]} 12... Qa5
{[%clk 0:02:33.4]} 13. a3 {[%clk 0:02:31]} 13... Rfd8 {[%clk 0:02:27.9]} 14. h3
{[%clk 0:02:25.4]} 14... b5 {[%clk 0:02:27.9]} 15. cxb5 {[%clk 0:02:09.8]} 15...
axb5 {[%clk 0:02:25.3]} 16. Nd4 {[%clk 0:01:55.9]} 16... Be8 {[%clk 0:02:04.6]}
17. Ndxb5 {[%clk 0:01:47.4]} 17... Bxb5 {[%clk 0:01:38.8]} 18. Nxb5 {[%clk
0:01:44.7]} 18... Nxe4 {[%clk 0:01:32.1]} 19. b4 {[%clk 0:01:41.7]} 19... Qb6
{[%clk 0:01:29.9]} 20. Qxe4 {[%clk 0:01:42.6]} 20... Qxb5 {[%clk 0:01:26.4]} 21.
Bxd6 {[%clk 0:01:43.8]} 21... Bxd6 {[%clk 0:01:07.8]} 22. Rxd6 {[%clk
0:01:44.3]} 22... Rdc8 {[%clk 0:00:57.2]} 23. Rfd1 {[%clk 0:01:42.3]} 23... g6
{[%clk 0:00:53]} 24. R6d3 {[%clk 0:01:18.5]} 24... h5 {[%clk 0:00:41.7]} 25. h4
{[%clk 0:01:16.9]} 25... Kg7 {[%clk 0:00:38.8]} 26. Qd4+ {[%clk 0:01:17]} 26...
Kg8 {[%clk 0:00:39.6]} 27. Qf6 {[%clk 0:01:16.5]} 27... Rf8 {[%clk 0:00:32.8]}
28. g3 {[%clk 0:01:14.1]} 28... Qc4 {[%clk 0:00:33.4]} 29. Kh2 {[%clk 0:01:05]}
29... Qa2 {[%clk 0:00:33.3]} 30. R1d2 {[%clk 0:01:05.6]} 30... Qb1 {[%clk
0:00:32.2]} 31. Rd8 {[%clk 0:01:04.4]} 31... Raxd8 {[%clk 0:00:29.2]} 32. Rxd8
{[%clk 0:01:05.5]} 32... Rxd8 {[%clk 0:00:27.7]} 33. Qxd8+ {[%clk 0:01:07.4]}
33... Kg7 {[%clk 0:00:29]} 34. Qd4+ {[%clk 0:01:09]} 34... f6 {[%clk 0:00:29.7]}
35. a4 {[%clk 0:01:10.4]} 35... e5 {[%clk 0:00:29.1]} 36. Qd7+ {[%clk 0:01:11]}
36... Kh6 {[%clk 0:00:29.6]} 37. Qd2+ {[%clk 0:01:12.1]} 37... Kg7 {[%clk
0:00:27.4]} 38. a5 {[%clk 0:01:14]} 38... Qb3 {[%clk 0:00:20.8]} 39. a6 {[%clk
0:01:12.8]} 39... Qa4 {[%clk 0:00:21.1]} 40. b5 {[%clk 0:01:11.6]} 40... Qxb5
{[%clk 0:00:20.5]} 41. Qa2 {[%clk 0:01:12.6]} 41... Qd5 {[%clk 0:00:20.7]} 42.
Qxd5 {[%clk 0:01:10.9]} 1-0

[Event "*** Titled Tuesday Blitz"]
[Site "Chess.com"]
[Date "2019.03.05"]
[Round "7"]
[White "Blagorod"]
[Black "j2806"]
[Result "1-0"]
[WhiteElo "2124"]
[BlackElo "1793"]
[TimeControl "180+2"]
[EndTime "14:38:46 PST"]
[Termination "Blagorod won by resignation"]

1. e4 {[%clk 0:03:01.9]} 1... c5 {[%clk 0:02:59.5]} 2. Nc3 {[%clk 0:03:00.8]}
2... Nc6 {[%clk 0:02:58.5]} 3. g3 {[%clk 0:02:56.9]} 3... g6 {[%clk 0:02:55.1]}
4. Bg2 {[%clk 0:02:58.4]} 4... Bg7 {[%clk 0:02:55.6]} 5. d3 {[%clk 0:03:00.1]}
5... e6 {[%clk 0:02:56.3]} 6. Be3 {[%clk 0:02:58.9]} 6... d6 {[%clk 0:02:55.8]}
7. f4 {[%clk 0:02:59.6]} 7... Nge7 {[%clk 0:02:54.9]} 8. Nf3 {[%clk 0:03:00.4]}
8... O-O {[%clk 0:02:55.1]} 9. O-O {[%clk 0:03:01.7]} 9... b6 {[%clk 0:02:54.7]}
10. Bf2 {[%clk 0:02:37.8]} 10... Bb7 {[%clk 0:02:50.8]} 11. Qd2 {[%clk 0:02:39]}
11... d5 {[%clk 0:02:43.3]} 12. e5 {[%clk 0:02:36.9]} 12... d4 {[%clk
0:02:41.7]} 13. Ne4 {[%clk 0:02:34.6]} 13... h5 {[%clk 0:02:16]} 14. h3 {[%clk
0:02:34.5]} 14... Nd5 {[%clk 0:02:09.2]} 15. g4 {[%clk 0:02:26.8]} 15... hxg4
{[%clk 0:02:01.7]} 16. hxg4 {[%clk 0:02:17.7]} 16... Bh6 {[%clk 0:01:55.5]} 17.
Bg3 {[%clk 0:02:12.6]} 17... Qe7 {[%clk 0:01:24.2]} 18. Kf2 {[%clk 0:01:42.7]}
18... Rfd8 {[%clk 0:00:59.8]} 19. Rh1 {[%clk 0:01:34]} 19... Bg7 {[%clk
0:00:57.1]} 20. g5 {[%clk 0:01:16.2]} 20... b5 {[%clk 0:00:48.9]} 21. Rh4 {[%clk
0:01:03]} 21... c4 {[%clk 0:00:34.7]} 22. Rah1 {[%clk 0:00:58.7]} 22... Ne3
{[%clk 0:00:31.7]} 23. Nf6+ {[%clk 0:00:44]} 23... Kf8 {[%clk 0:00:25.5]} 24.
Rh7 {[%clk 0:00:21.6]} 24... Nxg2 {[%clk 0:00:20.7]} 25. Kxg2 {[%clk 0:00:22.1]}
25... Qc7 {[%clk 0:00:17.5]} 26. Kf1 {[%clk 0:00:22.1]} 26... Bxf6 {[%clk
0:00:17.1]} 27. gxf6 {[%clk 0:00:22.3]} 27... Ke8 {[%clk 0:00:18.1]} 28. Ng5
{[%clk 0:00:22.7]} 28... cxd3 {[%clk 0:00:16.1]} 29. Rxf7 {[%clk 0:00:22.4]}
29... Qxf7 {[%clk 0:00:16.6]} 30. Nxf7 {[%clk 0:00:23.5]} 30... Kxf7 {[%clk
0:00:18.2]} 31. Rh7+ {[%clk 0:00:24.4]} 31... Ke8 {[%clk 0:00:19.1]} 32. Rxb7
{[%clk 0:00:25.5]} 1-0

[Event "*** Titled Tuesday Blitz"]
[Site "Chess.com"]
[Date "2019.03.05"]
[Round "7"]
[White "Stephenzinho"]
[Black "Vuk2000"]
[Result "0-1"]
[WhiteElo "2442"]
[BlackElo "2730"]
[TimeControl "180+2"]
[EndTime "14:38:53 PST"]
[Termination "Vuk2000 won by resignation"]

1. e4 {[%clk 0:03:01.9]} 1... d5 {[%clk 0:02:59.7]} 2. exd5 {[%clk 0:03:02.6]}
2... Qxd5 {[%clk 0:03:01.6]} 3. Nc3 {[%clk 0:03:03.6]} 3... Qd6 {[%clk
0:03:02.7]} 4. g3 {[%clk 0:03:04.7]} 4... Nf6 {[%clk 0:03:03.9]} 5. Bg2 {[%clk
0:03:06.1]} 5... c6 {[%clk 0:03:05.5]} 6. d3 {[%clk 0:03:06.3]} 6... Bg4 {[%clk
0:03:06.4]} 7. Nf3 {[%clk 0:03:07.5]} 7... e6 {[%clk 0:03:06.8]} 8. O-O {[%clk
0:03:08.6]} 8... Qd8 {[%clk 0:03:04.1]} 9. Re1 {[%clk 0:03:08.7]} 9... Bd6
{[%clk 0:03:04.4]} 10. h3 {[%clk 0:03:09.5]} 10... Bxf3 {[%clk 0:03:05.4]} 11.
Qxf3 {[%clk 0:03:10.2]} 11... Nbd7 {[%clk 0:03:05.8]} 12. Ne4 {[%clk 0:03:08.7]}
12... Nxe4 {[%clk 0:03:06.6]} 13. dxe4 {[%clk 0:03:09.6]} 13... Qb6 {[%clk
0:03:05.8]} 14. c3 {[%clk 0:02:55.2]} 14... O-O {[%clk 0:03:04.9]} 15. Qe3
{[%clk 0:02:49.6]} 15... Bc5 {[%clk 0:03:04.8]} 16. Qe2 {[%clk 0:02:50.5]} 16...
a5 {[%clk 0:02:48.3]} 17. a4 {[%clk 0:02:26.5]} 17... h6 {[%clk 0:02:39.1]} 18.
Rf1 {[%clk 0:02:18.8]} 18... Rfd8 {[%clk 0:02:36.7]} 19. Kh2 {[%clk 0:02:19.6]}
19... Qa6 {[%clk 0:02:30]} 20. Qxa6 {[%clk 0:01:46.2]} 20... Rxa6 {[%clk
0:02:31.9]} 21. f4 {[%clk 0:01:43.3]} 21... Nb6 {[%clk 0:02:26.7]} 22. Bf3
{[%clk 0:01:39.9]} 22... Raa8 {[%clk 0:02:26.1]} 23. Kg2 {[%clk 0:01:19.1]}
23... Nc4 {[%clk 0:02:06.9]} 24. b3 {[%clk 0:01:00.3]} 24... Nd2 {[%clk
0:01:50.4]} 25. Bxd2 {[%clk 0:00:40.9]} 25... Rxd2+ {[%clk 0:01:52.3]} 26. Kh1
{[%clk 0:00:42.5]} 26... Rd3 {[%clk 0:01:38]} 27. Rac1 {[%clk 0:00:39.3]} 27...
Rad8 {[%clk 0:01:39]} 28. Rc2 {[%clk 0:00:35.7]} 28... Re3 {[%clk 0:01:33.7]}
29. Kg2 {[%clk 0:00:31.4]} 29... Rdd3 {[%clk 0:01:32.5]} 30. c4 {[%clk
0:00:19.9]} 30... Rxb3 {[%clk 0:01:30.8]} 31. Rd2 {[%clk 0:00:17.7]} 31... g6
{[%clk 0:01:27.6]} 32. e5 {[%clk 0:00:17.8]} 32... Rec3 {[%clk 0:01:27.2]} 33.
g4 {[%clk 0:00:11.8]} 33... Rxc4 {[%clk 0:01:26]} 34. f5 {[%clk 0:00:09.6]}
34... gxf5 {[%clk 0:01:25.6]} 35. gxf5 {[%clk 0:00:11.5]} 35... exf5 {[%clk
0:01:26.8]} 36. Rd8+ {[%clk 0:00:11.6]} 36... Kg7 {[%clk 0:01:27.2]} 37. Rd7
{[%clk 0:00:12.9]} 37... Rc2+ {[%clk 0:01:15.2]} 38. Kh1 {[%clk 0:00:12.4]}
38... Rcc3 {[%clk 0:01:16.5]} 39. Kg2 {[%clk 0:00:13.1]} 39... Re3 {[%clk
0:01:13.6]} 40. Bh5 {[%clk 0:00:10]} 40... Rb2+ {[%clk 0:01:14.8]} 0-1

[Event "*** Titled Tuesday Blitz"]
[Site "Chess.com"]
[Date "2019.03.05"]
[Round "7"]
[White "Jbd735"]
[Black "Koksik_13"]
[Result "0-1"]
[WhiteElo "2457"]
[BlackElo "2641"]
[TimeControl "180+2"]
[EndTime "14:39:06 PST"]
[Termination "Koksik_13 won by checkmate"]

1. d4 {[%clk 0:03:01.9]} 1... e6 {[%clk 0:03:00.9]} 2. e4 {[%clk 0:03:01.5]}
2... d6 {[%clk 0:03:01.2]} 3. Nc3 {[%clk 0:03:01.7]} 3... Nf6 {[%clk 0:03:01.7]}
4. f4 {[%clk 0:02:55.8]} 4... Be7 {[%clk 0:03:02.9]} 5. Nf3 {[%clk 0:02:56.9]}
5... O-O {[%clk 0:03:04.5]} 6. Bd3 {[%clk 0:02:58.1]} 6... c5 {[%clk 0:03:06]}
7. dxc5 {[%clk 0:02:18]} 7... dxc5 {[%clk 0:03:06.8]} 8. O-O {[%clk 0:02:14.3]}
8... Nc6 {[%clk 0:03:06.8]} 9. a3 {[%clk 0:02:08]} 9... b6 {[%clk 0:03:07.9]}
10. e5 {[%clk 0:02:04.5]} 10... Nd5 {[%clk 0:03:04.8]} 11. Ne4 {[%clk
0:02:05.1]} 11... h6 {[%clk 0:03:04.1]} 12. c4 {[%clk 0:01:58.7]} 12... Nc7
{[%clk 0:03:04.1]} 13. Nd6 {[%clk 0:01:58.8]} 13... Bxd6 {[%clk 0:03:04.2]} 14.
exd6 {[%clk 0:01:59.6]} 14... Ne8 {[%clk 0:03:05.8]} 15. Be4 {[%clk 0:01:56.9]}
15... Bb7 {[%clk 0:03:05]} 16. Ne5 {[%clk 0:01:56.6]} 16... Nxe5 {[%clk
0:02:48.8]} 17. Bxb7 {[%clk 0:01:55.5]} 17... Rb8 {[%clk 0:02:48.3]} 18. fxe5
{[%clk 0:01:52.5]} 18... Rxb7 {[%clk 0:02:49.4]} 19. Qg4 {[%clk 0:01:45.4]}
19... Kh8 {[%clk 0:02:46.6]} 20. Qh5 {[%clk 0:01:36.2]} 20... f6 {[%clk
0:02:45.9]} 21. Bd2 {[%clk 0:01:11]} 21... Rbf7 {[%clk 0:02:46.6]} 22. Bc3
{[%clk 0:00:53.9]} 22... Kg8 {[%clk 0:02:45.9]} 23. Rad1 {[%clk 0:00:49.8]}
23... fxe5 {[%clk 0:02:45.6]} 24. Rxf7 {[%clk 0:00:47.4]} 24... Rxf7 {[%clk
0:02:46.3]} 25. Qxe5 {[%clk 0:00:46.8]} 25... Qd7 {[%clk 0:02:45]} 26. b4 {[%clk
0:00:41.4]} 26... Rf5 {[%clk 0:02:41.1]} 27. Qg3 {[%clk 0:00:38.7]} 27... Nf6
{[%clk 0:02:38.7]} 28. bxc5 {[%clk 0:00:31.8]} 28... bxc5 {[%clk 0:02:39.3]} 29.
Qg6 {[%clk 0:00:22.9]} 29... Rg5 {[%clk 0:02:36.2]} 30. Qd3 {[%clk 0:00:20.5]}
30... e5 {[%clk 0:02:24.5]} 31. Qe3 {[%clk 0:00:16.6]} 31... Qg4 {[%clk
0:02:24.3]} 32. Rd2 {[%clk 0:00:16.1]} 32... Nd7 {[%clk 0:02:24.8]} 33. Qd3
{[%clk 0:00:11.2]} 33... Qf4 {[%clk 0:02:19]} 34. Rf2 {[%clk 0:00:08]} 34... Qg4
{[%clk 0:02:08.8]} 35. Qd5+ {[%clk 0:00:07.6]} 35... Kh7 {[%clk 0:02:07.6]} 36.
h3 {[%clk 0:00:06]} 36... Qg3 {[%clk 0:02:05.9]} 37. Qe4+ {[%clk 0:00:05.8]}
37... Rg6 {[%clk 0:02:06.9]} 38. Be1 {[%clk 0:00:04.8]} 38... Qg5 {[%clk
0:01:53.4]} 39. Bd2 {[%clk 0:00:03.9]} 39... Qh5 {[%clk 0:01:47.5]} 40. Kh2
{[%clk 0:00:03.9]} 40... Nf6 {[%clk 0:01:46.7]} 41. Qf5 {[%clk 0:00:03.6]} 41...
Qh4 {[%clk 0:01:35.9]} 42. Be1 {[%clk 0:00:03.1]} 42... Ng4+ {[%clk 0:01:35.3]}
43. Kg1 {[%clk 0:00:03.5]} 43... Nxf2 {[%clk 0:01:36.3]} 44. Bxf2 {[%clk
0:00:04.7]} 44... Qxc4 {[%clk 0:01:24.1]} 45. d7 {[%clk 0:00:05.4]} 45... Qd5
{[%clk 0:01:24.9]} 46. Bh4 {[%clk 0:00:05]} 46... Qxg2# {[%clk 0:01:25.3]} 0-1

[Event "*** Titled Tuesday Blitz"]
[Site "Chess.com"]
[Date "2019.03.05"]
[Round "7"]
[White "LaughingTiger"]
[Black "chesstatour"]
[Result "1-0"]
[WhiteElo "2140"]
[BlackElo "2007"]
[TimeControl "180+2"]
[EndTime "14:39:24 PST"]
[Termination "LaughingTiger won by resignation"]

1. e4 {[%clk 0:03:01.8]} 1... c6 {[%clk 0:02:59]} 2. Nc3 {[%clk 0:03:01.7]} 2...
d5 {[%clk 0:02:59.5]} 3. Nf3 {[%clk 0:03:03.4]} 3... dxe4 {[%clk 0:03:00.3]} 4.
Nxe4 {[%clk 0:03:03.4]} 4... Nf6 {[%clk 0:03:01.6]} 5. Nxf6+ {[%clk 0:03:03.5]}
5... gxf6 {[%clk 0:03:01.9]} 6. d4 {[%clk 0:03:02.2]} 6... Bg4 {[%clk 0:03:02]}
7. c3 {[%clk 0:02:57.1]} 7... e6 {[%clk 0:02:59.7]} 8. h3 {[%clk 0:02:55.9]}
8... Bh5 {[%clk 0:02:59.4]} 9. Be2 {[%clk 0:02:51.3]} 9... Bd6 {[%clk
0:02:55.1]} 10. Be3 {[%clk 0:02:49.4]} 10... Nd7 {[%clk 0:02:54.6]} 11. a4
{[%clk 0:02:48.4]} 11... Qc7 {[%clk 0:02:55.7]} 12. b4 {[%clk 0:02:46.3]} 12...
Bf4 {[%clk 0:02:50.7]} 13. Qd2 {[%clk 0:02:34.8]} 13... Bxe3 {[%clk 0:02:48.6]}
14. Qxe3 {[%clk 0:02:36.7]} 14... O-O {[%clk 0:02:05.2]} 15. g4 {[%clk
0:02:33.1]} 15... Bg6 {[%clk 0:02:03.3]} 16. h4 {[%clk 0:02:34.5]} 16... Nb6
{[%clk 0:01:34.4]} 17. h5 {[%clk 0:02:30]} 17... Nd5 {[%clk 0:01:20.7]} 18. Qh6
{[%clk 0:02:28.5]} 18... Be4 {[%clk 0:01:04.8]} 19. Rg1 {[%clk 0:02:12.5]} 19...
Qf4 {[%clk 0:00:47.7]} 20. g5 {[%clk 0:01:58.7]} 20... Kh8 {[%clk 0:00:46.5]}
21. Nd2 {[%clk 0:01:55.6]} 21... Nxc3 {[%clk 0:00:02.4]} 22. Rg4 {[%clk
0:01:48.6]} 22... Qf5 {[%clk 0:00:03.5]} 23. Nxe4 {[%clk 0:01:34.4]} 23... Nxe4
{[%clk 0:00:03.9]} 24. Rxe4 {[%clk 0:01:00.1]} 24... Qxe4 {[%clk 0:00:03.4]} 25.
gxf6 {[%clk 0:01:01.6]} 25... Rg8 {[%clk 0:00:03.8]} 26. Kd2 {[%clk 0:00:57.8]}
26... Qxd4+ {[%clk 0:00:03.6]} 27. Bd3 {[%clk 0:00:56.9]} 27... Qb2+ {[%clk
0:00:02.4]} 28. Ke3 {[%clk 0:00:53.4]} 28... Qe5+ {[%clk 0:00:02.6]} 29. Be4
{[%clk 0:00:50.5]} 29... Qg5+ {[%clk 0:00:03.5]} 30. Qxg5 {[%clk 0:00:51]} 30...
Rxg5 {[%clk 0:00:05.2]} 31. Rd1 {[%clk 0:00:51.1]} 31... Rxh5 {[%clk 0:00:04.5]}
32. Rd7 {[%clk 0:00:51.3]} 32... Rh6 {[%clk 0:00:05.3]} 33. Rxf7 {[%clk
0:00:50.7]} 33... Kg8 {[%clk 0:00:04.9]} 34. Rg7+ {[%clk 0:00:45.1]} 34... Kf8
{[%clk 0:00:05.2]} 35. Bxh7 {[%clk 0:00:43.4]} 35... Rxf6 {[%clk 0:00:05.2]} 36.
Rg8+ {[%clk 0:00:42.8]} 36... Ke7 {[%clk 0:00:04]} 37. Rxa8 {[%clk 0:00:44.7]}
37... Rh6 {[%clk 0:00:03.1]} 38. Be4 {[%clk 0:00:44.9]} 38... Kd6 {[%clk
0:00:02.3]} 39. Rxa7 {[%clk 0:00:45.5]} 39... b5 {[%clk 0:00:02.4]} 40. a5
{[%clk 0:00:44.8]} 40... c5 {[%clk 0:00:02.6]} 41. Ra6+ {[%clk 0:00:45.3]} 41...
Ke5 {[%clk 0:00:03.3]} 42. bxc5 {[%clk 0:00:47.2]} 42... Rh3+ {[%clk 0:00:03]}
43. f3 {[%clk 0:00:48.4]} 43... Rh1 {[%clk 0:00:04]} 44. f4+ {[%clk 0:00:48.1]}
44... Kf6 {[%clk 0:00:04.5]} 45. Bxh1 {[%clk 0:00:50]} 1-0